bitfinex/quotes_SOLUSD_20220210
["timestamp","ask_amount","ask_price","bid_price","bid_amount"]
[1644526556467,4.572,109.38,109.29,10.79]
[1644526556664,4.572,109.38,109.27,13.7257]
[1644526556965,13.7285,109.36,109.26,10.79]
[1644526557163,46.46698724,109.34,109.26,10.79]
[1644526557367,4.574,109.33,109.26,10.79]
[1644526558065,36.09008667,109.32,109.19,56.5635]
[1644526558265,36.12637383,109.32,109.19,61.77648415]
[1644526558465,60.51367383,109.32,109.19,61.77648415]
[1644526558865,60.51367383,109.32,109.19,56.5635]
[1644526559168,4.575,109.31,109.21,13.7332]
[1644526559366,13.7351,109.3,109.21,13.7332]
[1644526559564,4.575,109.29,109.17,58.35129251]
[1644526559765,4.61128716,109.29,109.17,58.35129251]
[1644526559969,39.12044699,109.28,109.17,58.35129251]
[1644526560564,39.08415983,109.28,109.17,58.35129251]
[1644526560764,39.08415983,109.28,109.19,13.736]
[1644526561169,39.08415983,109.28,109.2,1.76082008]
[1644526561366,43.66115983,109.28,109.2,1.76082008]
[1644526561567,39.08415983,109.28,109.18,45.7791]
[1644526561769,39.08415983,109.28,109.15,12.56807678]
[1644526561770,46.53415983,109.28,109.15,12.56807678]
[1644526561968,4.61428716,109.27,109.12,10.79]
[1644526562169,4.61428716,109.27,109.09,14.0711]
[1644526562170,51.93758716,109.27,109.11,13.96110935]
[1644526562370,47.35958716,109.27,109.12,28.29124012]
[1644526562570,51.93758716,109.27,109.13,60.91372557]
[1644526562770,47.35958716,109.27,109.14,13.7424]
[1644526562969,47.35958716,109.27,109.15,10.79]
[1644526563172,0.03628716,109.27,109.15,25.12013077]
[1644526563370,0.03628716,109.29,109.15,47.1093169]
[1644526563571,0.03628716,109.26,109.16,29.30495908]
[1644526563773,0.03628716,109.28,109.17,56.571]
[1644526563972,0.03628716,109.26,109.19,91.7]
[1644526564173,13.7273,109.36,109.19,91.7]
[1644526564174,0.03628716,109.28,109.2,10.79]
[1644526564373,0.03628716,109.33,109.2,32.4534641]
[1644526564572,37.78970504,109.35,109.21,15.11792557]
[1644526564772,0.03628716,109.32,109.22,10.79]
[1644526564972,0.03628716,109.34,109.24,45.7499]
[1644526565175,43.78970504,109.35,109.25,37.48658778]
[1644526565176,0.03628716,109.32,109.25,37.48658778]
[1644526565374,0.03628716,109.34,109.25,57.41358778]
[1644526565672,43.8259922,109.35,109.25,59.19166456]
[1644526566073,43.8259922,109.35,109.25,37.11807678]
[1644526566478,43.8259922,109.35,109.25,31.11807678]
[1644526566874,43.8259922,109.35,109.25,37.11807678]
[1644526567078,43.8259922,109.35,109.26,1.77807678]
[1644526567279,43.78970504,109.35,109.28,13.7234]
[1644526567678,43.78970504,109.35,109.28,30.7634]
[1644526568176,43.78970504,109.35,109.28,24.7634]
[1644526568376,6.0,109.35,109.28,24.7634]
[1644526568575,6.0,109.35,109.28,32.54147678]
[1644526568776,0.03628716,109.37,109.28,30.5134]
[1644526568977,4.573,109.38,109.28,24.5134]
[1644526569180,4.60928716,109.38,109.28,24.5134]
[1644526569377,50.78388477,109.37,109.28,24.5134]
[1644526569579,4.073,109.36,109.28,24.5134]
[1644526570380,39.51672106,109.35,109.28,24.7634]
[1644526570979,39.51672106,109.35,109.28,11.04]
[1644526571678,39.34097112,109.33,109.28,0.25]
[1644526571877,39.34097112,109.33,109.25,56.7885]
[1644526572078,39.34097112,109.33,109.25,62.7885]
[1644526572680,0.03628716,109.34,109.28,13.725]
[1644526572882,0.03628716,109.35,109.28,13.975]
[1644526573180,36.29908716,109.38,109.28,13.975]
[1644526573383,22.57378716,109.38,109.28,13.975]
[1644526573681,68.8991388,109.38,109.31,13.7195]
[1644526573982,68.86285164,109.38,109.31,13.9695]
[1644526574180,68.86285164,109.38,109.31,13.7195]
[1644526574380,68.86285164,109.38,109.27,15.362]
[1644526574381,82.58725164,109.38,109.27,15.362]
[1644526574582,4.573,109.37,109.27,10.79]
[1644526574782,4.60928716,109.37,109.27,17.04]
[1644526574982,0.03628716,109.37,109.27,17.04]
[1644526575184,0.03628716,109.37,109.27,17.83941787]
[1644526575389,0.03628716,109.37,109.29,13.7233]
[1644526575585,73.43585164,109.38,109.29,13.7233]
[1644526575785,73.43585164,109.38,109.27,10.79]
[1644526575786,74.76546789,109.38,109.27,10.79]
[1644526575985,90.43446789,109.38,109.21,1.30241362]
[1644526576184,1.29332909,109.36,109.21,4.574]
[1644526576384,5.90461625,109.35,109.23,13.7308]
[1644526576584,38.70151737,109.34,109.24,11.68625889]
[1644526576788,38.73780453,109.34,109.24,17.68625889]
[1644526576985,38.73780453,109.34,109.24,19.46433567]
[1644526577384,38.73780453,109.34,109.24,19.71433567]
[1644526577793,38.73780453,109.34,109.27,13.7257]
[1644526577987,38.70151737,109.34,109.27,18.17108564]
[1644526578185,38.70151737,109.34,109.27,18.42108564]
[1644526578589,47.33538716,109.36,109.27,18.42108564]
[1644526578887,47.2991,109.36,109.27,18.42108564]
[1644526579388,47.2991,109.36,109.27,36.98916242]
[1644526579891,6.0,109.36,109.27,36.98916242]
[1644526580087,48.28381994,109.35,109.27,36.98916242]
[1644526580285,48.28381994,109.35,109.27,30.7657]
[1644526580490,48.28381994,109.35,109.27,13.9757]
[1644526581288,48.28381994,109.35,109.27,30.00399318]
[1644526581493,48.28381994,109.35,109.27,15.75377678]
[1644526581687,48.28381994,109.35,109.27,13.9757]
[1644526582190,59.32481994,109.35,109.25,13.7282]
[1644526582389,46.60368474,109.33,109.21,1.30241362]
[1644526582691,46.60368474,109.33,109.21,2.06914206]
[1644526582891,4.61175685,109.32,109.21,2.06914206]
[1644526583093,30.0,109.26,109.19,5.87741362]
[1644526583291,30.0,109.26,109.19,1.30241362]
[1644526583492,30.0,109.26,109.21,13.7335]
[1644526584895,30.0,109.26,109.21,13.9835]
[1644526585500,45.37788954,109.25,109.21,13.9835]
[1644526585902,30.0,109.26,109.21,13.7335]
[1644526586823,30.0,109.26,109.19,13.7352]
[1644526587022,35.26138935,109.25,109.19,13.7352]
[1644526587223,35.26138935,109.25,109.19,13.9852]
[1644526590325,35.26138935,109.25,109.19,13.7352]
[1644526590528,35.26138935,109.25,109.17,13.7381]
[1644526590725,45.83938935,109.25,109.17,13.7381]
[1644526591328,45.83938935,109.25,109.17,26.41798044]
[1644526591528,39.83938935,109.25,109.17,13.9881]
[1644526591728,30.0,109.26,109.17,19.9881]
[1644526592027,30.0,109.26,109.2,13.7325]
[1644526592229,30.0,109.26,109.21,10.79]
[1644526592627,30.0,109.26,109.21,11.04]
[1644526593629,69.28473425,109.26,109.21,11.04]
[1644526593827,69.28473425,109.26,109.22,13.7301]
[1644526594232,69.28473425,109.26,109.22,13.9801]
[1644526596036,30.0,109.26,109.22,13.9801]
[1644526596735,25.0,109.26,109.22,24.7701]
[1644526597337,60.89370162,109.26,109.22,24.7701]
[1644526598439,60.89370162,109.26,109.22,13.7301]
[1644526598642,60.89370162,109.26,109.2,24.5249]
[1644526598840,60.89370162,109.26,109.2,13.7349]
[1644526599438,66.89370162,109.26,109.2,13.7349]
[1644526600842,66.89370162,109.26,109.2,13.9849]
[1644526601742,60.89370162,109.26,109.2,13.9849]
[1644526601942,60.89370162,109.26,109.18,13.7377]
[1644526602144,4.577,109.25,109.15,47.09791362]
[1644526602350,71.47170162,109.26,109.15,45.7955]
[1644526602545,66.89370162,109.26,109.15,45.7955]
[1644526602949,66.89370162,109.26,109.15,59.11589719]
[1644526603346,66.89370162,109.26,109.15,59.36589719]
[1644526603545,80.63210162,109.26,109.16,13.74]
[1644526603750,4.578,109.25,109.16,13.99]
[1644526603953,36.94974934,109.24,109.16,13.99]
[1644526606174,25.0,109.26,109.19,13.7373]
[1644526606376,25.0,109.26,109.19,13.9873]
[1644526606577,25.0,109.26,109.2,16.64918613]
[1644526606775,25.0,109.26,109.21,10.79]
[1644526606975,25.0,109.26,109.21,12.56807678]
[1644526607178,25.0,109.26,109.22,4.72427205]
[1644526607374,25.0,109.26,109.22,18.81807678]
[1644526607576,25.0,109.26,109.23,13.7288]
[1644526607775,25.0,109.26,109.24,0.16730806]
[1644526608175,5.89709188,109.25,109.24,0.16730806]
[1644526608375,24.5,109.26,109.24,0.16730806]
[1644526609179,24.5,109.26,109.24,13.89800806]
[1644526609377,3.03219997,109.25,109.24,0.16730806]
[1644526609577,3.03219997,109.25,109.21,4.575]
[1644526609578,38.66697902,109.25,109.21,4.575]
[1644526610384,38.66697902,109.25,109.22,13.735]
[1644526610581,2.86489191,109.24,109.22,13.735]
[1644526610781,3.03219997,109.25,109.23,0.16730806]
[1644526610982,3.03219997,109.24,109.23,0.16730806]
[1644526611185,24.5,109.26,109.22,0.25]
[1644526611386,24.5,109.26,109.2,11.04]
[1644526612302,24.5,109.26,109.23,13.7331]
[1644526612485,24.5,109.26,109.24,0.16730806]
[1644526612887,19.5,109.26,109.24,10.95730806]
[1644526613286,19.5,109.26,109.24,11.20730806]
[1644526613489,19.5,109.26,109.25,13.7279]
[1644526613887,19.5,109.26,109.25,13.9779]
[1644526614488,19.5,109.26,109.25,13.7279]
[1644526614688,60.2320722,109.26,109.24,13.90010806]
[1644526614887,60.2320722,109.26,109.21,10.79]
[1644526615090,60.2320722,109.26,109.18,12.09241362]
[1644526615288,60.2320722,109.26,109.18,10.79]
[1644526615689,66.2320722,109.26,109.18,10.79]
[1644526616792,66.2320722,109.26,109.2,13.7362]
[1644526617193,66.2320722,109.26,109.2,13.9862]
[1644526619296,60.2320722,109.26,109.2,13.9862]
[1644526621293,60.2320722,109.26,109.2,19.9862]
[1644526621491,19.5,109.26,109.2,19.9862]
[1644526621691,19.5,109.26,109.22,13.7296]
[1644526621895,19.5,109.26,109.23,10.79]
[1644526622196,19.5,109.26,109.24,0.16730806]
[1644526622892,19.5,109.26,109.25,13.7273]
[1644526623292,19.5,109.26,109.25,13.9773]
[1644526626500,62.7459207,109.26,109.25,13.7273]
[1644526626904,62.7459207,109.26,109.23,13.7332]
[1644526629207,68.7459207,109.26,109.23,13.7332]
[1644526629409,62.7459207,109.26,109.23,13.7332]
[1644526629607,62.7459207,109.26,109.23,13.9832]
[1644526630509,62.7459207,109.26,109.23,13.7332]
[1644526632013,62.7459207,109.26,109.22,13.7354]
[1644526632209,69.8939207,109.26,109.18,71.44980935]
[1644526632413,75.8939207,109.26,109.18,71.44980935]
[1644526632612,75.8939207,109.26,109.18,56.5787]
[1644526632810,75.8939207,109.26,109.18,56.8287]
[1644526633411,75.8939207,109.26,109.2,13.7372]
[1644526634212,89.0,109.25,109.15,16.17352297]
[1644526634413,13.741,109.24,109.14,12.09241362]
[1644526634615,4.579,109.23,109.14,1.30241362]
[1644526634820,13.489,109.23,109.15,13.7443]
[1644526635011,23.8568,109.22,109.15,13.7443]
[1644526635214,37.00356148,109.21,109.15,15.52258009]
[1644526635416,37.00356148,109.21,109.15,13.7443]
[1644526635815,37.00356148,109.21,109.15,13.9943]
[1644526636413,23.8568,109.22,109.15,13.9943]
[1644526636613,23.5741,109.24,109.15,47.00035611]
[1644526636813,23.5741,109.24,109.15,61.47493132]
[1644526637116,24.7308,109.25,109.15,62.77734494]
[1644526637515,46.59982673,109.24,109.18,13.735]
[1644526637713,46.59982673,109.24,109.18,24.525]
[1644526637915,46.59982673,109.24,109.18,26.55328009]
[1644526638114,46.59982673,109.24,109.18,24.775]
[1644526638717,52.59982673,109.24,109.18,13.735]
[1644526639016,4.578,109.23,109.18,13.735]
[1644526639216,52.59982673,109.24,109.17,13.7418]
[1644526641524,52.59982673,109.24,109.16,13.7428]
[1644526641822,4.578,109.23,109.12,47.11621362]
[1644526642023,51.6104,109.23,109.13,0.25]
[1644526642226,47.0324,109.23,109.13,0.25]
[1644526642423,43.84789095,109.22,109.13,0.25]
[1644526642623,43.84789095,109.22,109.13,1.78370632]
[1644526642924,43.84789095,109.22,109.13,3.08611994]
[1644526643731,49.84789095,109.22,109.15,13.7442]
[1644526644131,49.84789095,109.22,109.15,13.9942]
[1644526644332,49.84789095,109.22,109.16,24.69019033]
[1644526644529,6.0,109.22,109.16,24.69019033]
[1644526644734,4.579,109.25,109.16,41.73019033]
[1644526644932,19.5,109.26,109.17,29.96018234]
[1644526645131,19.5,109.26,109.18,10.79]
[1644526645338,19.5,109.26,109.18,12.82370632]
[1644526645537,45.72285259,109.25,109.18,12.82370632]
[1644526645737,45.72285259,109.25,109.18,11.04]
[1644526646161,19.5,109.26,109.18,11.04]
[1644526646359,19.5,109.26,109.18,15.617]
[1644526646562,19.5,109.26,109.2,13.7338]
[1644526646761,19.5,109.26,109.2,13.9838]
[1644526647161,19.5,109.26,109.21,1.78370632]
[1644526647363,19.5,109.26,109.21,2.03370632]
[1644526647564,19.5,109.26,109.21,17.40070632]
[1644526648063,19.5,109.26,109.21,15.617]
[1644526648264,19.5,109.26,109.22,21.74373982]
[1644526648464,19.5,109.26,109.22,15.51510632]
[1644526648665,19.5,109.26,109.22,26.55510632]
[1644526649264,19.5,109.26,109.22,32.55510632]
[1644526649669,19.5,109.26,109.22,26.55510632]
[1644526649873,19.5,109.26,109.22,30.7714]
[1644526650070,19.5,109.26,109.22,24.7714]
[1644526651571,19.5,109.26,109.22,32.55510632]
[1644526651870,19.5,109.26,109.22,30.7714]
[1644526652272,19.5,109.26,109.22,32.55510632]
[1644526653677,19.5,109.26,109.22,30.7714]
[1644526654177,19.5,109.26,109.22,32.55510632]
[1644526654673,4.577,109.32,109.25,13.7244]
[1644526654874,0.03678359,109.34,109.26,10.79]
[1644526655076,49.66892909,109.35,109.27,21.34808591]
[1644526655077,91.05374624,109.35,109.27,21.34808591]
[1644526655274,97.01696265,109.35,109.27,27.59808591]
[1644526656678,97.01696265,109.35,109.27,38.38808591]
[1644526656876,97.01696265,109.35,109.28,13.7225]
[1644526657301,97.01696265,109.35,109.28,13.9725]
[1644526657477,97.01696265,109.35,109.28,13.7225]
[1644526658277,45.16324149,109.33,109.28,13.7225]
[1644526659680,51.16324149,109.33,109.28,13.7225]
[1644526662087,70.9672,109.35,109.28,13.9725]
[1644526662287,76.9672,109.35,109.28,13.9725]
[1644526662486,76.9672,109.35,109.28,24.7625]
[1644526662686,6.0,109.35,109.28,24.7625]
[1644526662892,0.03678359,109.37,109.28,24.7625]
[1644526663087,48.32323921,109.35,109.28,24.7625]
[1644526663688,48.32323921,109.35,109.28,24.5125]
[1644526663987,48.32323921,109.35,109.28,13.7225]
[1644526664192,4.573,109.34,109.28,13.7225]
[1644526664493,4.573,109.34,109.26,13.729]
[1644526664691,50.28592154,109.33,109.26,13.729]
[1644526664910,4.574,109.32,109.26,13.729]
[1644526665309,41.61283613,109.31,109.26,13.729]
[1644526665513,41.61283613,109.31,109.25,13.7314]
[1644526667718,47.61283613,109.31,109.25,13.7314]
[1644526668119,47.61283613,109.31,109.23,13.733]
[1644526668313,4.575,109.3,109.23,13.983]
[1644526668514,44.53218655,109.29,109.23,13.983]
[1644526670017,49.10718655,109.29,109.23,13.983]
[1644526670418,44.53218655,109.29,109.23,13.983]
[1644526671617,44.53218655,109.29,109.19,12.57370632]
[1644526671817,51.87518655,109.29,109.19,45.7848]
[1644526672017,51.87518655,109.29,109.17,14.43777602]
[1644526672217,51.9201,109.28,109.17,14.43777602]
[1644526672420,45.12606938,109.27,109.14,27.04828153]
[1644526672621,39.87133982,109.25,109.14,27.04828153]
[1644526672823,45.41092795,109.23,109.17,13.7404]
[1644526673223,51.41092795,109.23,109.17,13.7404]
[1644526674023,51.41092795,109.23,109.16,13.7426]
[1644526677535,51.41092795,109.23,109.16,13.9926]
[1644526678732,51.41092795,109.23,109.16,13.7426]
[1644526680834,51.41092795,109.23,109.16,13.9926]
[1644526681437,51.41092795,109.23,109.16,13.7426]
[1644526681935,51.41092795,109.23,109.16,41.21583425]
[1644526682135,45.41092795,109.23,109.16,43.24954057]
[1644526682334,45.41092795,109.23,109.18,13.7363]
[1644526682533,45.41092795,109.23,109.18,24.5263]
[1644526682734,23.5853,109.27,109.18,26.56000632]
[1644526683139,48.15788359,109.3,109.18,41.03458153]
[1644526683343,48.15788359,109.3,109.18,69.17535755]
[1644526683559,0.03678359,109.31,109.18,78.21056565]
[1644526683759,45.0928221,109.31,109.19,2.39561028]
[1644526683961,0.03678359,109.3,109.23,13.7305]
[1644526684159,45.05603851,109.31,109.23,13.7305]
[1644526684360,51.05603851,109.31,109.23,13.7305]
[1644526684568,51.05603851,109.31,109.23,13.9805]
[1644526685062,51.05603851,109.31,109.23,13.7305]
[1644526685461,4.575,109.3,109.21,13.7355]
[1644526685661,53.90648359,109.3,109.21,13.7355]
[1644526685860,53.90648359,109.3,109.17,10.79]
[1644526686160,46.12540916,109.29,109.17,10.79]
[1644526686662,39.40659958,109.27,109.17,10.79]
[1644526686960,39.40659958,109.27,109.17,11.04]
[1644526687164,39.40659958,109.27,109.2,13.7377]
[1644526687361,44.16673813,109.25,109.2,13.7377]
[1644526689362,50.16673813,109.25,109.2,13.7377]
[1644526689563,50.16673813,109.25,109.18,13.7392]
[1644526689964,50.16673813,109.25,109.15,0.024]
[1644526689965,44.11036767,109.23,109.15,0.024]
[1644526690368,4.578,109.24,109.15,0.024]
[1644526690565,6.0,109.25,109.15,10.771]
[1644526690765,6.0,109.25,109.16,1.78370632]
[1644526690967,6.0,109.25,109.18,13.7371]
[1644526691264,37.6827365,109.24,109.18,13.7371]
[1644526692966,43.6827365,109.24,109.18,13.7371]
[1644526694379,43.6827365,109.24,109.18,39.72958171]
[1644526694380,6.0,109.24,109.18,39.72958171]
[1644526694977,47.8593,109.26,109.18,39.72958171]
[1644526695170,53.8593,109.26,109.18,39.72958171]
[1644526695370,44.46469174,109.25,109.18,39.72958171]
[1644526695770,44.46469174,109.25,109.18,13.7371]
[1644526696370,53.8593,109.26,109.18,13.7371]
[1644526696570,47.8593,109.26,109.18,13.7371]
[1644526696773,5.87032909,109.29,109.18,21.77080632]
[1644526696972,22.5378,109.3,109.22,13.7307]
[1644526697173,22.57458359,109.3,109.22,24.5207]
[1644526697473,2.59430446,109.36,109.23,104.0]
[1644526697670,0.03729048,109.31,109.24,102.49]
[1644526697871,0.03729048,109.35,109.24,124.12948234]
[1644526698071,4.575,109.37,109.25,1.78895562]
[1644526698271,0.03729048,109.34,109.27,0.54300042]
[1644526698471,0.03729048,109.36,109.28,10.79]
[1644526698671,40.73622222,109.37,109.28,10.79]
[1644526698873,0.03729048,109.36,109.28,11.04]
[1644526699073,40.73622222,109.37,109.28,11.04]
[1644526699486,40.73622222,109.37,109.29,25.64362212]
[1644526699676,46.73622222,109.37,109.29,25.64362212]
[1644526699874,46.73622222,109.37,109.3,10.79]
[1644526700075,46.73622222,109.37,109.3,24.5144]
[1644526700273,46.73622222,109.37,109.3,24.7644]
[1644526700475,0.03729048,109.37,109.3,33.4244]
[1644526700678,0.03729048,109.4,109.31,1.78895562]
[1644526700874,0.03729048,109.4,109.31,18.82895562]
[1644526701480,35.83269916,109.4,109.32,29.71702863]
[1644526701677,35.83269916,109.4,109.33,13.7164]
[1644526701877,4.571,109.39,109.29,12.57895562]
[1644526702078,4.60829048,109.39,109.29,10.79]
[1644526702277,0.03729048,109.38,109.29,10.79]
[1644526702479,0.03729048,109.38,109.27,1.78895562]
[1644526702678,40.36740868,109.4,109.27,1.78895562]
[1644526702679,0.03729048,109.39,109.27,18.57895562]
[1644526702877,0.03729048,109.37,109.27,18.57895562]
[1644526703079,0.03729048,109.39,109.27,18.57895562]
[1644526703280,0.03729048,109.39,109.27,18.82895562]
[1644526703479,13.76079048,109.39,109.31,13.7221]
[1644526703680,40.09391938,109.38,109.27,11.04]
[1644526703880,40.13120986,109.38,109.27,11.04]
[1644526704286,46.13120986,109.38,109.27,11.04]
[1644526704681,46.13120986,109.38,109.28,0.38585316]
[1644526704893,59.85580986,109.38,109.29,13.7246]
[1644526705080,59.81851938,109.38,109.29,13.7246]
[1644526706281,46.09391938,109.38,109.3,24.12612722]
[1644526706480,41.52191938,109.38,109.32,13.7195]
[1644526707287,41.52191938,109.38,109.29,11.04]
[1644526707484,4.573,109.37,109.29,0.25]
[1644526707683,41.55920986,109.38,109.29,0.25]
[1644526707884,41.52191938,109.38,109.29,12.57895562]
[1644526708083,41.52191938,109.38,109.3,7.56614701]
[1644526708386,41.52191938,109.38,109.3,7.81614701]
[1644526708583,6.0,109.38,109.3,7.81614701]
[1644526708786,0.03729048,109.39,109.32,13.7216]
[1644526708984,27.15209048,109.4,109.32,13.7216]
[1644526709584,36.44668574,109.39,109.32,13.7216]
[1644526709813,36.48397622,109.39,109.32,13.7216]
[1644526710386,36.48397622,109.39,109.32,36.02429752]
[1644526710586,36.48397622,109.39,109.32,13.7216]
[1644526711789,4.572,109.38,109.32,13.7216]
[1644526711989,35.92212435,109.37,109.32,13.7216]
[1644526712590,41.92212435,109.37,109.32,13.7216]
[1644526717619,6.0,109.37,109.32,13.7216]
[1644526717818,0.03729048,109.39,109.32,13.7216]
[1644526718018,22.58009048,109.4,109.32,13.7216]
[1644526718618,47.69259678,109.39,109.32,37.29150891]
[1644526718822,47.72988726,109.39,109.32,13.9716]
[1644526719019,0.03729048,109.39,109.32,13.9716]
[1644526719222,22.58009048,109.4,109.32,26.55055562]
[1644526719519,0.03729048,109.39,109.32,26.55055562]
[1644526719718,0.03729048,109.4,109.32,32.55055562]
[1644526719918,0.03729048,109.43,109.32,32.55055562]
[1644526720122,45.77826199,109.43,109.33,22.09251504]
[1644526720319,0.03729048,109.42,109.36,21.48942949]
[1644526720521,0.03729048,109.43,109.36,21.48942949]
[1644526720719,0.03729048,109.43,109.36,21.73942949]
[1644526721120,0.03729048,109.43,109.36,30.57542949]
[1644526721918,42.51974841,109.43,109.36,22.5491]
[1644526722120,42.48245793,109.43,109.36,13.7131]
[1644526722321,4.57,109.42,109.36,13.7131]
[1644526722522,0.03729048,109.43,109.36,13.7131]
[1644526722727,0.03729048,109.43,109.36,23.5621]
[1644526722921,0.03729048,109.43,109.36,25.35105562]
[1644526723422,0.03729048,109.43,109.37,26.21145703]
[1644526723621,39.96957775,109.43,109.38,13.7119]
[1644526724524,4.57,109.44,109.38,21.6679]
[1644526724723,4.57,109.44,109.4,13.7093]
[1644526725122,4.60629048,109.48,109.4,13.7093]
[1644526725522,43.39015685,109.47,109.4,43.21069704]
[1644526725724,49.39015685,109.47,109.4,43.21069704]
[1644526726324,49.39015685,109.47,109.4,43.46069704]
[1644526726524,6.0,109.47,109.4,43.46069704]
[1644526726725,4.60629048,109.48,109.4,43.46069704]
[1644526726926,0.03729048,109.48,109.4,56.03764341]
[1644526727933,4.60429048,109.48,109.4,43.46069704]
[1644526728129,10.60429048,109.48,109.4,45.24764341]
[1644526728329,10.60429048,109.48,109.4,54.00069704]
[1644526728726,10.60429048,109.48,109.4,54.25069704]
[1644526728929,6.03729048,109.48,109.4,54.25069704]
[1644526729131,6.03729048,109.48,109.4,56.03764341]
[1644526729530,0.03729048,109.48,109.4,54.25069704]
[1644526729929,4.60429048,109.48,109.4,54.25069704]
[1644526730130,43.16773582,109.47,109.4,54.25069704]
[1644526730330,4.60429048,109.48,109.4,54.25069704]
[1644526730533,0.03729048,109.48,109.4,54.25069704]
[1644526731633,47.73338728,109.48,109.4,43.46069704]
[1644526732633,47.73338728,109.48,109.4,13.7093]
[1644526732834,4.567,109.47,109.4,13.7093]
[1644526733040,58.30038728,109.48,109.4,13.7093]
[1644526733235,58.30038728,109.48,109.39,13.7126]
[1644526733435,0.03729048,109.47,109.39,13.7126]
[1644526733635,37.12504436,109.45,109.39,13.7126]
[1644526735738,37.12504436,109.45,109.39,13.9626]
[1644526735940,4.60629048,109.47,109.39,13.9626]
[1644526736138,0.03729048,109.47,109.39,15.74076581]
[1644526736540,0.03729048,109.47,109.4,10.79]
[1644526736739,0.03729048,109.48,109.4,21.481]
[1644526736942,0.03729048,109.48,109.42,13.7067]
[1644526737139,92.52525118,109.49,109.42,13.7067]
[1644526737740,92.52525118,109.49,109.42,13.9567]
[1644526737939,47.455,109.49,109.43,3.0437239]
[1644526738142,47.455,109.49,109.43,16.7506239]
[1644526738342,0.03729048,109.52,109.43,29.67878971]
[1644526738942,46.54315094,109.52,109.43,29.67878971]
[1644526739842,4.567,109.51,109.43,29.67878971]
[1644526740444,4.567,109.51,109.43,15.48506581]
[1644526740445,34.30410519,109.5,109.43,15.48506581]
[1644526740646,4.567,109.49,109.43,13.7069]
[1644526740845,29.066,109.49,109.4,1.77816581]
[1644526741045,0.03729048,109.48,109.32,10.79]
[1644526741342,42.5194541,109.46,109.32,25.43484912]
[1644526741541,15.39729048,109.45,109.32,25.43484912]
[1644526741742,40.02593954,109.44,109.32,25.43484912]
[1644526741943,96.84333954,109.44,109.32,25.43484912]
[1644526742148,99.07456108,109.44,109.3,10.79]
[1644526742342,4.571,109.43,109.3,10.79]
[1644526742544,13.75549048,109.42,109.33,13.719]
[1644526742944,13.75549048,109.42,109.29,10.79]
[1644526743146,13.75549048,109.42,109.29,37.36072135]
[1644526743147,64.73907444,109.41,109.29,37.36072135]
[1644526743576,13.7211,109.4,109.29,10.79]
[1644526743747,4.60929048,109.39,109.27,10.79]
[1644526743947,0.03729048,109.38,109.27,10.79]
[1644526744150,10.61029048,109.39,109.27,10.79]
[1644526744349,0.03729048,109.37,109.27,10.79]
[1644526744545,10.35029048,109.37,109.27,23.5203346]
[1644526744746,35.01336804,109.36,109.27,23.5203346]
[1644526744947,35.01336804,109.36,109.26,28.19260502]
[1644526745146,4.574,109.35,109.24,10.79]
[1644526745547,4.574,109.35,109.23,28.19260502]
[1644526745749,4.574,109.35,109.23,28.44260502]
[1644526745946,4.574,109.35,109.23,53.40780114]
[1644526745947,44.92586343,109.34,109.23,53.40780114]
[1644526746147,66.66976343,109.34,109.25,13.7286]
[1644526746448,66.66976343,109.34,109.25,13.9786]
[1644526747047,66.66976343,109.34,109.25,13.7286]
[1644526747449,4.574,109.33,109.25,13.7286]
[1644526747648,18.3043,109.33,109.25,13.7286]
[1644526748250,37.83913048,109.32,109.25,13.9786]
[1644526748448,4.575,109.31,109.25,13.9786]
[1644526748651,45.12621563,109.3,109.25,13.9786]
[1644526748852,45.12621563,109.3,109.25,13.7286]
[1644526749149,55.70821563,109.3,109.23,13.7308]
[1644526749650,55.70821563,109.3,109.2,28.19260502]
[1644526749951,13.7315,109.33,109.21,37.059743]
[1644526750251,63.1163,109.35,109.22,14.3624141]
[1644526750453,52.3263,109.35,109.22,29.97077083]
[1644526750654,52.3263,109.35,109.23,26.39835673]
[1644526750963,46.9691742,109.34,109.24,22.15065826]